[Event "NOR-chT Eliteserien 2021-22"]
[Site "Norway"]
[Date "2022.03.06"]
[Round "9.5"]
[White "Torngren, Gustav"]
[Black "Dahl, Max"]
[Result "1/2-1/2"]
[ECO "E09"]
[WhiteElo "2229"]
[BlackElo "2038"]
[Annotator "ChessBase"]
[PlyCount "39"]
[EventDate "2021.10.29"]
[EventType "team-tourn"]
[EventCountry "NOR"]
[SourceTitle "playchess.com"]
[Source "ChessBase"]
[SourceQuality "1"]
[TimeControl "40/5400+30:1800+30"]

1. Nf3 {[%emt 0:00:08]} d5 {[%emt 0:00:29]} 2. d4 {[%emt 0:00:02]} Nf6 {[%emt 0:00:29]} 3. c4 {[%emt 0:00:16]} e6 {[%emt 0:00:37]} 4. g3 {[%emt 0:00:14]} Be7 {[%emt 0:07:12]} 5. Qc2 {[%emt 0:00:43]} O-O {[%emt 0:01:19]} 6. Bg2 {[%emt 0:00:15]} c6 {[%emt 0:00:54]} 7. O-O {[%emt 0:01:42]} b6 {[%emt 0:03:54]} 8. b3 {[%emt 1:31:10]} Nbd7 {[%emt 0:04:02]} 9. Bb2 {[%emt 0:04:26]} Bb7 {[%emt 0:03:54]} 10. Nc3 {[%emt 0:00:10]} Rc8 {[%emt 0:03:45]} 11. e4 {[%emt 0:00:39]} dxe4 {[%emt 0:03:54]} 12. Nxe4 {[%emt 0:00:56]} Nxe4 {[%emt 0:11:05]} 13. Qxe4 {[%emt 0:00:03]} Nf6 {[%emt 0:00:38]} 14. Qe2 {[%emt 1:23:04]} c5 {[%emt 0:04:14]} 15. Rad1 {[%emt 0:01:06]} cxd4 {[%emt 0:06:44]} 16. Nxd4 {[%emt 0:05:01]} Bxg2 {[%emt 0:03:19]} 17. Kxg2 {[%emt 0:00:02]} Qc7 {[%emt 0:00:35]} 18. Nb5 {[%emt 0:01:28]} Qb7+ {[%emt 0:05:01]} 19. Qf3 {[%emt 0:00:24]} Qxf3+ {[%emt 0:01:03]} 20. Kxf3 {[%emt 0:00:02]} 1/2-1/2

[Event "NOR-chT Eliteserien 2021-22"]
[Site "Norway"]
[Date "2022.03.06"]
[Round "9.6"]
[White "Loveid, Erik"]
[Black "Nordquelle, Daniel"]
[Result "0-1"]
[ECO "D31"]
[WhiteElo "1817"]
[BlackElo "2130"]
[Annotator "NA"]
[PlyCount "76"]
[EventDate "2021.10.29"]
[EventType "team-tourn"]
[EventCountry "NOR"]
[SourceTitle "playchess.com"]
[Source "ChessBase"]
[SourceQuality "1"]
[TimeControl "40/5400+30:1800+30"]

1. d4 {[%emt 0:00:57]} d5 {[%emt 0:00:08]} 2. c4 {[%emt 0:00:40]} e6 {[%emt 0:00:05]} 3. Nf3 {[%emt 0:00:06]} Bb4+ {[%emt 0:02:33]} 4. Nc3 {[%emt 0:00:29]} dxc4 {[%emt 0:00:10]} 5. Qa4+ {[%emt 0:03:26]} Nc6 {[%emt 0:00:34]} 6. a3 {[%emt 0:00:31]} Bxc3+ {[%emt 0:00:36]} 7. bxc3 {[%emt 0:00:13]} Qd5 {[%emt 0:00:04]} 8. Bf4 {[%emt 0:04:36]} b5 {[%emt 0:01:39]} 9. Qc2 {[%emt 0:00:12]} Bb7 {[%emt 0:09:05]} 10. Bxc7 {[%emt 0:01:10]} Nf6 {[%emt 0:01:02]} 11. e3 {[%emt 0:01:09]} O-O {[%emt 0:01:26]} 12. Be2 {[%emt 0:01:09]} Rfc8 {[%emt 0:06:50]} 13. Bg3 {[%emt 0:00:10]} Na5 {[%emt 0:00:24]} 14. O-O {[%emt 0:05:50]} Nb3 {[%emt 0:00:46]} 15. Ra2 {[%emt 0:01:15]} Ne4 {[%emt 0:04:32]} 16. Rd1 {[%emt 0:00:37]} a5 {[%emt 0:34:05]} 17. Ne1 {[%emt 0:01:59]} Qf5 {[%emt 0:02:35]} 18. f3 {[%emt 0:01:41]} Nxg3 {[%emt 0:00:53]} 19. hxg3 {[%emt 0:00:10]} Qg5 {[%emt 0:00:41]} 20. Kf2 {[%emt 0:00:56]} e5 {[%emt 0:09:35]} 21. f4 {[%emt 0:05:00]} exf4 {[%emt 0:00:27]} 22. exf4 {[%emt 0:00:06]} Qe7 {[%emt 0:02:45]} 23. Bf3 {[%emt 0:01:27]} b4 {[%emt 0:04:21]} 24. axb4 {[%emt 0:00:57]} axb4 {[%emt 0:00:09]} 25. Rxa8 {[%emt 0:00:21]} Bxa8 {[%emt 0:01:01]} 26. Qf5 {[%emt 0:24:33]} Re8 {[%emt 0:01:16]} 27. Qe5 {[%emt 0:14:28]} Qd7 {[%emt 0:00:17]} 28. Bg4 {[%emt 0:02:36]} Rxe5 {[%emt 0:03:53]} 29. Bxd7 {[%emt 0:00:15]} Rd5 {[%emt 0:00:10]} 30. Bg4 {[%emt 0:01:17]} bxc3 {[%emt 0:00:08]} 31. Nc2 {[%emt 0:00:18]} Ra5 {[%emt 0:01:11]} 32. Ke3 {[%emt 0:01:49]} Ra2 {[%emt 0:01:38]} 33. Nb4 {[%emt 0:02:15]} Rxg2 {[%emt 0:00:30]} 34. d5 {[%emt 0:00:14]} Rxg3+ {[%emt 0:04:04]} 35. Bf3 {[%emt 0:03:19]} Nd2 {[%emt 0:02:26]} 36. d6 {[%emt 0:01:21]} Rxf3+ {[%emt 0:01:12]} 37. Kd4 {[%emt 0:00:26]} Rxf4+ {[%emt 0:02:18]} 38. Kxc3 {[%emt 0:00:21]} Ne4+ {[%emt 0:00:05]} 0-1

[Event "NOR-chT Eliteserien 2021-22"]
[Site "Norway"]
[Date "2022.03.06"]
[Round "9.7"]
[White "Sagafos, Magne"]
[Black "Miezis, Normunds"]
[Result "0-1"]
[ECO "D02"]
[WhiteElo "2386"]
[BlackElo "2445"]
[Annotator "ChessBase"]
[PlyCount "26"]
[EventDate "2021.10.29"]
[EventType "team-tourn"]
[EventCountry "NOR"]
[SourceTitle "playchess.com"]
[Source "ChessBase"]
[SourceQuality "1"]
[TimeControl "40/5400+30:1800+30"]

1. d4 {[%emt 0:03:46]} Nf6 {[%emt 0:00:21]} 2. Nf3 {[%emt 0:00:13]} e6 {[%emt 0:01:14]} 3. Bf4 {[%emt 0:00:23]} d5 {[%emt 0:06:08]} 4. e3 {[%emt 1:28:08]} Bd6 {[%emt 0:00:54]} 5. Bg3 {[%emt 0:00:24]} Ne4 {[%emt 0:02:14]} 6. Nbd2 {[%emt 0:09:24]} f5 {[%emt 0:03:49]} 7. Nxe4 {[%emt 0:06:15]} fxe4 {[%emt 0:00:33]} 8. Ne5 {[%emt 0:02:34]} O-O {[%emt 1:19:17]} 9. f3 {[%emt 1:11:42]} Nc6 {[%emt 0:22:53]} 10. fxe4 {[%emt 0:12:14]} Bxe5 {[%emt 0:07:38]} 11. dxe5 {[%emt 0:00:12]} dxe4 {[%emt 0:01:31]} 12. Qd3 {[%emt 0:52:35]} Qd7 13. Qxd7 {[%emt 0:00:00]} Rd8 {[%emt 0:02:00]} 0-1

[Event "NOR-chT Eliteserien 2021-22"]
[Site "Norway"]
[Date "2022.03.06"]
[Round "9.8"]
[White "Ostenstad, Berge"]
[Black "Byklum, Bjornar"]
[Result "1-0"]
[ECO "E35"]
[WhiteElo "2455"]
[BlackElo "2318"]
[Annotator "ChessBase"]
[PlyCount "84"]
[EventDate "2021.10.29"]
[EventType "team-tourn"]
[EventCountry "NOR"]
[SourceTitle "playchess.com"]
[Source "ChessBase"]
[SourceQuality "1"]
[TimeControl "40/5400+30:1800+30"]

1. d4 {[%emt 0:00:03]} Nf6 {[%emt 0:00:22]} 2. c4 {[%emt 0:00:11]} e6 {[%emt 0:00:08]} 3. Nc3 {[%emt 0:00:35]} Bb4 {[%emt 0:00:08]} 4. Qc2 {[%emt 0:00:07]} d5 {[%emt 0:00:11]} 5. cxd5 {[%emt 0:00:22]} exd5 {[%emt 0:00:09]} 6. Bg5 {[%emt 0:00:32]} h6 {[%emt 0:04:08]} 7. Bxf6 {[%emt 0:00:29]} Qxf6 {[%emt 0:00:10]} 8. a3 {[%emt 0:00:13]} Bxc3+ {[%emt 0:01:09]} 9. Qxc3 {[%emt 0:00:09]} c6 {[%emt 0:02:27]} 10. e3 {[%emt 0:01:22]} O-O {[%emt 0:00:29]} 11. Nf3 {[%emt 0:00:46]} Re8 {[%emt 0:06:16]} 12. b4 {[%emt 0:06:14]} a6 {[%emt 0:11:14]} 13. Be2 {[%emt 0:02:35]} Bg4 {[%emt 0:02:01]} 14. O-O {[%emt 0:00:33]} Bxf3 {[%emt 0:12:54]} 15. Bxf3 {[%emt 0:00:22]} Nd7 {[%emt 0:56:14]} 16. Rfc1 {[%emt 1:23:57]} Nb6 {[%emt 0:01:37]} 17. a4 {[%emt 0:06:17]} Qe6 {[%emt 0:12:53]} 18. Be2 {[%emt 0:08:22]} Rec8 {[%emt 0:01:51]} 19. g3 {[%emt 1:06:17]} g6 {[%emt 0:05:32]} 20. Qb3 {[%emt 0:00:55]} h5 {[%emt 0:12:59]} 21. h4 {[%emt 0:00:50]} Kg7 {[%emt 0:02:33]} 22. Rc2 {[%emt 0:03:55]} Qf5 {[%emt 0:22:14]} 23. Kg2 {[%emt 0:51:22]} Qe4+ {[%emt 0:01:15]} 24. Bf3 {[%emt 0:00:00]} Qf5 {[%emt 0:00:32]} 25. Re1 {[%emt 0:00:00]} Qd7 {[%emt 0:05:35]} 26. Be2 {[%emt 0:00:00]} Qf5 {[%emt 0:00:28]} 27. Bd3 {[%emt 0:00:00]} Qf6 {[%emt 0:01:11]} 28. Rec1 {[%emt 0:00:00]} Rh8 {[%emt 0:00:59]} 29. b5 {[%emt 0:00:00]} cxb5 {[%emt 0:00:06]} 30. axb5 {[%emt 0:00:00]} a5 {[%emt 0:00:13]} 31. Rc7 {[%emt 0:00:00]} Rab8 {[%emt 0:03:19]} 32. Qa3 {[%emt 0:00:00]} a4 {[%emt 0:00:10]} 33. Qb4 {[%emt 0:00:00]} Rhe8 {[%emt 0:06:24]} 34. Be2 {[%emt 0:00:00]} Re6 {[%emt 0:01:55]} 35. Bf3 {[%emt 0:00:00]} Qf5 {[%emt 0:01:09]} 36. Be2 {[%emt 0:00:00]} Qe4+ {[%emt 0:00:25]} 37. Kg1 {[%emt 0:00:00]} g5 {[%emt 0:00:06]} 38. Bxh5 {[%emt 0:00:00]} Rf8 {[%emt 0:02:45]} 39. hxg5 {[%emt 0:00:00]} Qf5 {[%emt 0:00:46]} 40. Re7 {[%emt 0:02:06]} Qxg5 {[%emt 0:00:40]} 41. Rxe6 {[%emt 0:33:13]} fxe6 {[%emt 0:31:28]} 42. Rc7+ {[%emt 0:00:00]} Kg8 {[%emt 0:00:08]} 1-0

[Event "NOR-chT Eliteserien 2021-22"]
[Site "Norway"]
[Date "2022.03.06"]
[Round "9.9"]
[White "Leer-Helgesen, Bjarte"]
[Black "Haubro, Martin"]
[Result "1/2-1/2"]
[ECO "A25"]
[WhiteElo "2352"]
[BlackElo "2399"]
[Annotator "ChessBase"]
[PlyCount "89"]
[EventDate "2021.10.29"]
[EventType "team-tourn"]
[EventCountry "NOR"]
[SourceTitle "playchess.com"]
[Source "ChessBase"]
[SourceQuality "1"]
[TimeControl "40/5400+30:1800+30"]

1. c4 {[%emt 0:00:35]} e5 {[%emt 0:00:04]} 2. g3 {[%emt 0:00:11]} Nc6 {[%emt 0:00:06]} 3. Bg2 {[%emt 0:00:17]} Bc5 {[%emt 0:00:20]} 4. Nc3 {[%emt 0:00:45]} a6 {[%emt 0:00:44]} 5. e3 {[%emt 0:03:16]} d6 {[%emt 0:00:05]} 6. Nge2 {[%emt 0:02:23]} Ba7 {[%emt 0:00:24]} 7. d4 {[%emt 0:03:26]} h5 {[%emt 0:02:11]} 8. b4 {[%emt 0:02:23]} h4 {[%emt 0:07:17]} 9. b5 {[%emt 0:03:26]} axb5 {[%emt 0:00:16]} 10. cxb5 {[%emt 0:01:04]} Nce7 {[%emt 0:01:47]} 11. dxe5 {[%emt 0:02:21]} h3 {[%emt 0:01:06]} 12. Bf3 {[%emt 0:08:13]} dxe5 {[%emt 0:02:04]} 13. Qxd8+ {[%emt 0:01:00]} Kxd8 {[%emt 0:00:05]} 14. O-O {[%emt 0:04:45]} Bb6 {[%emt 0:05:30]} 15. a4 {[%emt 0:09:30]} c6 {[%emt 0:37:24]} 16. Rd1+ {[%emt 0:04:56]} Ke8 {[%emt 0:10:09]} 17. bxc6 {[%emt 0:08:42]} bxc6 {[%emt 0:00:12]} 18. Ba3 {[%emt 0:14:42]} Bc7 {[%emt 0:03:34]} 19. Nb5 {[%emt 0:03:48]} Bb8 {[%emt 0:00:46]} 20. Bd6 {[%emt 0:09:26]} f5 {[%emt 0:07:54]} 21. Bxb8 {[%emt 0:03:40]} Rxb8 {[%emt 0:00:09]} 22. Nd6+ {[%emt 0:00:34]} Kf8 {[%emt 0:00:07]} 23. e4 {[%emt 0:01:44]} g6 {[%emt 0:10:04]} 24. Nxc8 {[%emt 0:01:27]} Rxc8 {[%emt 0:00:07]} 25. a5 {[%emt 0:00:11]} Nf6 {[%emt 0:00:30]} 26. Nc3 {[%emt 0:00:36]} Kf7 {[%emt 0:00:26]} 27. a6 {[%emt 0:01:14]} Rc7 {[%emt 0:00:19]} 28. Ra5 {[%emt 0:04:20]} Ra8 {[%emt 0:03:48]} 29. Be2 {[%emt 0:01:17]} fxe4 {[%emt 0:01:23]} 30. Rxe5 {[%emt 0:00:42]} Ned5 {[%emt 0:00:13]} 31. Bc4 {[%emt 0:01:22]} Kg7 {[%emt 0:02:14]} 32. Na4 {[%emt 0:02:08]} Rb8 {[%emt 0:02:55]} 33. Nc5 {[%emt 0:00:21]} Ra7 {[%emt 0:00:40]} 34. Rc1 {[%emt 0:01:26]} e3 {[%emt 0:01:00]} 35. fxe3 {[%emt 0:00:43]} Rb2 {[%emt 0:01:00]} 36. Ne6+ {[%emt 0:00:47]} Kh6 {[%emt 0:00:11]} 37. Bf1 {[%emt 0:00:46]} Ng4 {[%emt 0:00:09]} 38. Re4 {[%emt 0:00:14]} Ndf6 {[%emt 0:01:09]} 39. Rf4 {[%emt 0:00:17]} g5 {[%emt 0:00:29]} 40. Rf5 {[%emt 0:00:50]} Rxa6 {[%emt 0:00:52]} 41. Nxg5 {[%emt 0:01:12]} Kg6 {[%emt 0:30:30]} 42. Nxh3 {[%emt 0:00:30]} Kxf5 {[%emt 0:00:30]} 43. Bxa6 {[%emt 0:00:30]} Nxh2 {[%emt 0:00:30]} 44. Nf2 {[%emt 0:00:30]} Nf3+ {[%emt 0:00:30]} 45. Kg2 {[%emt 0:00:30]} 1/2-1/2

[Event "NOR-chT Eliteserien 2021-22"]
[Site "Norway"]
[Date "2022.03.06"]
[Round "9.10"]
[White "Tisdall, Jonathan D"]
[Black "Astrup, Kim Chr."]
[Result "1/2-1/2"]
[ECO "D31"]
[WhiteElo "2414"]
[BlackElo "2224"]
[Annotator "NA"]
[PlyCount "46"]
[EventDate "2021.10.29"]
[EventType "team-tourn"]
[EventCountry "NOR"]
[SourceTitle "playchess.com"]
[Source "ChessBase"]
[SourceQuality "1"]
[TimeControl "40/5400+30:1800+30"]

1. c4 {[%emt 0:00:10]} e6 {[%emt 0:07:20]} 2. Nc3 {[%emt 0:00:31]} d5 {[%emt 0:00:18]} 3. cxd5 {[%emt 0:00:30]} exd5 {[%emt 0:00:10]} 4. d4 {[%emt 0:00:03]} c6 {[%emt 0:01:25]} 5. Bf4 {[%emt 0:02:51]} Bf5 {[%emt 0:02:29]} 6. e3 {[%emt 0:01:00]} Nf6 {[%emt 0:02:44]} 7. Bd3 {[%emt 0:09:09]} Bxd3 {[%emt 0:00:40]} 8. Qxd3 {[%emt 0:00:01]} Bd6 {[%emt 0:01:09]} 9. Bg5 {[%emt 0:05:08]} O-O {[%emt 0:03:19]} 10. Nf3 {[%emt 0:00:07]} Nbd7 {[%emt 0:01:23]} 11. O-O {[%emt 0:00:55]} h6 {[%emt 0:02:26]} 12. Bh4 {[%emt 0:01:14]} Re8 {[%emt 0:01:11]} 13. Nd2 {[%emt 0:04:47]} Qc7 {[%emt 0:09:56]} 14. Bg3 {[%emt 0:08:56]} Bxg3 {[%emt 0:01:54]} 15. hxg3 {[%emt 0:02:21]} Re6 {[%emt 0:02:48]} 16. b4 {[%emt 0:01:16]} Qd6 {[%emt 0:03:12]} 17. Rab1 {[%emt 0:04:36]} b5 {[%emt 0:00:52]} 18. a4 {[%emt 0:08:34]} a6 {[%emt 0:00:33]} 19. e4 {[%emt 0:10:56]} dxe4 {[%emt 0:01:34]} 20. Ndxe4 {[%emt 0:00:04]} Nxe4 {[%emt 0:04:56]} 21. Nxe4 {[%emt 0:00:03]} Qe7 {[%emt 0:01:32]} 22. Nc5 {[%emt 0:01:53]} Nxc5 {[%emt 0:01:55]} 23. dxc5 {[%emt 0:00:04]} Rd8 {[%emt 0:00:53]} 1/2-1/2

[Event "NOR-chT Eliteserien 2021-22"]
[Site "Norway"]
[Date "2022.03.06"]
[Round "9.11"]
[White "Harestad, Hans Krogh"]
[Black "Sahl, Bjarke"]
[Result "1/2-1/2"]
[ECO "D15"]
[WhiteElo "2208"]
[BlackElo "2306"]
[Annotator "ChessBase"]
[PlyCount "84"]
[EventDate "2021.10.29"]
[EventType "team-tourn"]
[EventCountry "NOR"]
[SourceTitle "playchess.com"]
[Source "ChessBase"]
[SourceQuality "1"]
[TimeControl "40/5400+30:1800+30"]

1. d4 {[%emt 0:00:03]} d5 {[%emt 0:00:11]} 2. c4 {[%emt 0:00:31]} c6 {[%emt 0:00:06]} 3. Nf3 {[%emt 0:00:12]} Nf6 {[%emt 1:31:43]} 4. Nc3 {[%emt 0:00:37]} a6 {[%emt 0:02:24]} 5. e3 {[%emt 0:00:16]} b5 {[%emt 0:00:17]} 6. c5 {[%emt 0:00:19]} Nbd7 {[%emt 0:01:09]} 7. a3 {[%emt 0:01:50]} g6 {[%emt 0:00:15]} 8. Be2 {[%emt 0:07:37]} Bg7 {[%emt 0:00:19]} 9. O-O {[%emt 0:00:06]} O-O {[%emt 0:02:13]} 10. b4 {[%emt 0:02:00]} Ne4 {[%emt 0:16:03]} 11. Nxe4 {[%emt 0:07:36]} dxe4 {[%emt 0:01:38]} 12. Nd2 {[%emt 1:15:23]} Nf6 {[%emt 0:02:12]} 13. Qc2 {[%emt 0:00:23]} Bf5 {[%emt 0:11:17]} 14. a4 {[%emt 0:02:41]} h5 {[%emt 0:02:46]} 15. Bb2 {[%emt 0:03:17]} Qd7 {[%emt 0:08:07]} 16. Ra3 {[%emt 0:10:51]} Rad8 {[%emt 0:05:22]} 17. Rfa1 {[%emt 0:21:26]} Nd5 {[%emt 0:02:41]} 18. axb5 {[%emt 0:00:13]} axb5 {[%emt 0:00:05]} 19. Nxe4 {[%emt 0:15:37]} Qe6 {[%emt 0:13:04]} 20. f3 {[%emt 0:00:10]} Bh6 {[%emt 0:03:43]} 21. Bc1 {[%emt 0:01:37]} Nxb4 {[%emt 0:01:21]} 22. Qb3 {[%emt 0:07:39]} Qxb3 {[%emt 0:07:39]} 23. Rxb3 {[%emt 0:00:04]} Ra8 {[%emt 0:00:37]} 24. Rxa8 {[%emt 0:04:24]} Rxa8 {[%emt 0:00:11]} 25. Rxb4 {[%emt 0:07:55]} Ra1 {[%emt 0:00:06]} 26. Kf2 {[%emt 0:05:59]} Rxc1 {[%emt 0:00:05]} 27. Bd3 {[%emt 0:01:24]} Ra1 {[%emt 0:01:57]} 28. Rb2 {[%emt 0:00:17]} Ra3 {[%emt 0:06:32]} 29. Ke2 {[%emt 0:00:33]} Be6 {[%emt 0:12:32]} 30. f4 {[%emt 0:02:44]} Bd5 {[%emt 0:02:08]} 31. g3 {[%emt 0:00:08]} f5 {[%emt 0:02:51]} 32. Nd2 {[%emt 0:01:18]} Kf7 {[%emt 0:01:28]} 33. Bc2 {[%emt 0:00:53]} Bg7 {[%emt 0:01:43]} 34. Bb3 {[%emt 0:01:33]} Ke6 {[%emt 0:00:53]} 35. Kd3 {[%emt 0:00:36]} Bf6 {[%emt 0:02:02]} 36. h4 {[%emt 0:00:34]} Bxb3 {[%emt 0:03:38]} 37. Rxb3 {[%emt 0:00:15]} Ra2 {[%emt 0:00:21]} 38. Kc3 {[%emt 0:00:39]} Kd5 {[%emt 0:00:57]} 39. Rb1 {[%emt 0:00:53]} e6 {[%emt 0:01:03]} 40. Rb2 {[%emt 0:00:34]} Rxb2 {[%emt 0:00:53]} 41. Kxb2 {[%emt 0:30:01]} Bd8 {[%emt 0:30:07]} 42. Kc2 {[%emt 0:00:24]} Ba5 {[%emt 0:00:07]} 1/2-1/2

[Event "NOR-chT Eliteserien 2021-22"]
[Site "Norway"]
[Date "2022.03.06"]
[Round "9.12"]
[White "Aulin-Jansson, Joran"]
[Black "Grebstad, Kjell Borre"]
[Result "1/2-1/2"]
[ECO "A14"]
[WhiteElo "2214"]
[BlackElo "2064"]
[Annotator "NA"]
[PlyCount "81"]
[EventDate "2021.10.29"]
[EventType "team-tourn"]
[EventCountry "NOR"]
[SourceTitle "playchess.com"]
[Source "ChessBase"]
[SourceQuality "1"]
[TimeControl "40/5400+30:1800+30"]

1. Nf3 {[%emt 0:00:12]} d5 {[%emt 0:00:26]} 2. c4 {[%emt 0:00:08]} e6 {[%emt 0:01:07]} 3. g3 {[%emt 0:00:34]} Nf6 {[%emt 0:00:29]} 4. Bg2 {[%emt 0:03:35]} Be7 {[%emt 0:03:16]} 5. O-O {[%emt 0:00:08]} O-O {[%emt 0:00:04]} 6. b3 {[%emt 0:02:11]} c5 {[%emt 0:02:23]} 7. cxd5 {[%emt 0:01:16]} Nxd5 {[%emt 0:06:48]} 8. Bb2 {[%emt 0:00:48]} Nc6 {[%emt 0:00:18]} 9. Nc3 {[%emt 0:07:09]} Bf6 {[%emt 0:07:30]} 10. Qc1 {[%emt 0:03:08]} b6 {[%emt 0:01:25]} 11. Nxd5 {[%emt 0:02:10]} exd5 {[%emt 0:00:51]} 12. Bxf6 {[%emt 0:01:02]} Qxf6 {[%emt 0:01:11]} 13. Re1 {[%emt 0:18:39]} Be6 {[%emt 0:06:59]} 14. d3 {[%emt 0:01:18]} h6 {[%emt 0:00:48]} 15. Qf4 {[%emt 0:01:37]} Qxf4 {[%emt 0:10:44]} 16. gxf4 {[%emt 0:00:06]} Rac8 {[%emt 0:02:52]} 17. Red1 {[%emt 0:03:43]} Rfd8 {[%emt 0:09:04]} 18. Rac1 {[%emt 0:03:35]} d4 {[%emt 0:01:58]} 19. Rd2 {[%emt 0:02:21]} Nb4 {[%emt 0:01:19]} 20. Ne5 {[%emt 0:05:15]} Bd5 {[%emt 0:06:37]} 21. Bh3 {[%emt 0:03:23]} Rc7 {[%emt 0:01:00]} 22. e4 {[%emt 0:11:35]} dxe3 {[%emt 0:01:06]} 23. fxe3 {[%emt 0:00:06]} f6 {[%emt 0:02:10]} 24. Ng4 {[%emt 0:01:22]} Re7 {[%emt 0:05:00]} 25. Re1 {[%emt 0:10:40]} Bb7 {[%emt 0:07:02]} 26. Nf2 {[%emt 0:01:44]} Nd5 {[%emt 0:03:39]} 27. Bg2 {[%emt 0:02:18]} Nb4 {[%emt 0:01:56]} 28. Bxb7 {[%emt 0:03:06]} Rxb7 {[%emt 0:00:26]} 29. Kg2 {[%emt 0:00:14]} Rbd7 {[%emt 0:00:26]} 30. Red1 {[%emt 0:00:12]} Kf7 {[%emt 0:03:44]} 31. Kf3 {[%emt 0:01:59]} g5 {[%emt 0:02:00]} 32. a3 {[%emt 0:05:29]} Nc6 {[%emt 0:01:08]} 33. fxg5 {[%emt 0:03:04]} hxg5 {[%emt 0:00:13]} 34. h3 {[%emt 0:00:10]} Ke6 {[%emt 0:02:17]} 35. Ke2 {[%emt 0:00:20]} Rh8 {[%emt 0:02:25]} 36. Rc1 {[%emt 0:00:42]} Ne7 {[%emt 0:04:57]} 37. b4 {[%emt 0:01:06]} cxb4 {[%emt 0:00:35]} 38. axb4 {[%emt 0:00:06]} Rh4 {[%emt 0:02:17]} 39. d4 {[%emt 0:00:37]} f5 {[%emt 0:00:26]} 40. b5 {[%emt 0:01:53]} Rh8 {[%emt 0:00:51]} 41. Rg1 {[%emt 0:31:27]} 1/2-1/2

[Event "NOR-chT Eliteserien 2021-22"]
[Site "Norway"]
[Date "2022.03.06"]
[Round "9.14"]
[White "Romanov, Evgeny"]
[Black "Vestby-Ellingsen, Mads"]
[Result "1-0"]
[ECO "C50"]
[WhiteElo "2561"]
[BlackElo "2368"]
[Annotator "ChessBase"]
[PlyCount "59"]
[EventDate "2021.10.29"]
[EventType "team-tourn"]
[EventCountry "NOR"]
[SourceTitle "playchess.com"]
[Source "ChessBase"]
[SourceQuality "1"]
[TimeControl "40/5400+30:1800+30"]

1. e4 {[%emt 1:31:00]} e5 {[%emt 1:31:00]} 2. Nf3 {[%emt 0:00:30]} Nc6 {[%emt 0:00:30]} 3. Bc4 {[%emt 0:00:30]} Bc5 {[%emt 0:00:30]} 4. d3 {[%emt 0:00:30]} Nf6 {[%emt 0:00:30]} 5. Nc3 {[%emt 0:00:30]} d6 {[%emt 0:00:30]} 6. Bg5 {[%emt 0:00:30]} h6 {[%emt 0:00:30]} 7. Bxf6 {[%emt 0:00:30]} Qxf6 {[%emt 0:00:30]} 8. Nd5 {[%emt 0:00:30]} Qd8 {[%emt 0:00:30]} 9. c3 {[%emt 0:00:30]} a6 {[%emt 0:00:30]} 10. d4 {[%emt 0:00:30]} Ba7 {[%emt 0:00:30]} 11. h3 {[%emt 0:00:30]} O-O {[%emt 0:00:30]} 12. O-O {[%emt 0:00:30]} Kh8 {[%emt 0:00:30]} 13. Re1 {[%emt 0:00:30]} f5 {[%emt 0:00:30]} 14. exf5 {[%emt 0:00:30]} Bxf5 {[%emt 0:00:30]} 15. Bd3 {[%emt 0:00:30]} exd4 {[%emt 0:00:30]} 16. c4 {[%emt 0:00:30]} Bxd3 {[%emt 0:00:30]} 17. Qxd3 {[%emt 0:00:30]} Rf7 {[%emt 0:00:30]} 18. g3 {[%emt 0:00:30]} Qd7 {[%emt 0:00:30]} 19. Nh4 {[%emt 0:00:30]} g5 {[%emt 0:00:30]} 20. Ng6+ {[%emt 0:00:30]} Kg7 {[%emt 0:00:30]} 21. g4 {[%emt 0:00:30]} Re8 {[%emt 0:00:30]} 22. f4 {[%emt 0:00:30]} gxf4 {[%emt 0:00:30]} 23. Ngxf4 {[%emt 0:00:30]} Ne5 {[%emt 0:00:30]} 24. Rxe5 {[%emt 0:00:30]} Rxe5 {[%emt 0:00:30]} 25. Qg6+ {[%emt 0:00:30]} Kh8 {[%emt 0:00:30]} 26. Qxh6+ {[%emt 0:00:30]} Kg8 {[%emt 0:00:30]} 27. Ng6 {[%emt 0:00:30]} d3+ {[%emt 0:00:30]} 28. Kh1 {[%emt 0:00:30]} Rh5 {[%emt 0:00:30]} 29. Qxh5 {[%emt 0:00:30]} Bd4 {[%emt 0:00:30]} 30. Qg5 {[%emt 0:00:30]} 1-0

[Event "NOR-chT Eliteserien 2021-22"]
[Site "Norway"]
[Date "2022.03.06"]
[Round "9.16"]
[White "Holm, Kristian Stuvik"]
[Black "Royset, Pal"]
[Result "1/2-1/2"]
[ECO "A44"]
[WhiteElo "2464"]
[BlackElo "2146"]
[Annotator "ChessBase"]
[PlyCount "63"]
[EventDate "2021.10.29"]
[EventType "team-tourn"]
[EventCountry "NOR"]
[SourceTitle "playchess.com"]
[Source "ChessBase"]
[SourceQuality "1"]
[TimeControl "40/5400+30:1800+30"]

1. d4 {[%emt 0:09:53]} c5 {[%emt 0:01:28]} 2. d5 {[%emt 0:00:18]} e5 {[%emt 0:01:08]} 3. e4 {[%emt 0:01:29]} d6 {[%emt 0:00:10]} 4. Nc3 {[%emt 0:05:49]} Nf6 {[%emt 0:01:30]} 5. h3 {[%emt 0:01:10]} a6 {[%emt 0:01:58]} 6. a4 {[%emt 0:02:41]} Nbd7 {[%emt 0:01:45]} 7. g4 {[%emt 0:03:00]} Be7 {[%emt 0:06:04]} 8. Nge2 {[%emt 0:03:17]} Nf8 {[%emt 0:06:10]} 9. Ng3 {[%emt 0:00:43]} Ng6 {[%emt 0:00:21]} 10. Nf5 {[%emt 0:03:04]} O-O {[%emt 1:14:56]} 11. h4 {[%emt 0:02:41]} Re8 {[%emt 0:00:00]} 12. Qf3 {[%emt 0:01:38]} Nf4 {[%emt 0:00:00]} 13. Bxf4 {[%emt 0:03:23]} exf4 {[%emt 0:00:00]} 14. Qxf4 {[%emt 0:05:56]} Bxf5 {[%emt 0:00:00]} 15. Qxf5 {[%emt 0:02:56]} Qa5 {[%emt 0:00:00]} 16. Be2 {[%emt 0:04:26]} Qb4 {[%emt 0:00:00]} 17. Rb1 {[%emt 0:02:19]} Bd8 {[%emt 0:00:00]} 18. Kf1 {[%emt 0:09:33]} g6 {[%emt 0:00:00]} 19. Qf4 {[%emt 0:04:24]} Nxe4 {[%emt 0:00:00]} 20. Bd3 {[%emt 0:06:56]} Nf6 {[%emt 0:00:00]} 21. Qxb4 {[%emt 0:02:10]} cxb4 {[%emt 0:00:00]} 22. g5 {[%emt 0:00:09]} bxc3 {[%emt 0:00:00]} 23. gxf6 {[%emt 0:00:05]} Bxf6 {[%emt 0:00:00]} 24. bxc3 {[%emt 0:00:10]} Bxc3 {[%emt 0:00:00]} 25. Rxb7 {[%emt 0:00:21]} Re1+ {[%emt 0:00:00]} 26. Kg2 {[%emt 0:00:02]} Rxh1 {[%emt 0:00:00]} 27. Kxh1 {[%emt 0:00:03]} a5 {[%emt 0:00:00]} 28. Kg2 {[%emt 0:01:58]} h5 {[%emt 0:00:00]} 29. Bb5 {[%emt 0:02:15]} Bd4 {[%emt 0:00:00]} 30. Rd7 {[%emt 0:01:09]} Bc5 {[%emt 0:00:00]} 31. Kf3 {[%emt 0:03:16]} Ra7 {[%emt 0:00:00]} 32. Rxa7 {[%emt 0:00:40]} 1/2-1/2